bitfinex-derivatives/quotes_SOLF0:USTF0_20250310
["timestamp","ask_amount","ask_price","bid_price","bid_amount"]
[1741615522825,73.84356769,123.85,123.69,1.40591859]
[1741615522826,43.68759155,123.82,123.69,8.56748015]
[1741615523028,43.68759155,123.84,123.69,8.56748015]
[1741615523029,8.0805,123.76,123.69,16.65178015]
[1741615523330,43.68759155,123.76,123.62,4.227]
[1741615523531,43.68759155,123.76,123.63,43.68759155]
[1741615523724,0.05566482,123.7,123.68,0.05974047]
[1741615523925,43.68759155,123.73,123.61,95.82184723]
[1741615524224,43.68759155,123.78,123.61,95.82184723]
[1741615524431,43.68759155,123.78,123.67,43.68759155]
[1741615524729,43.68759155,123.75,123.64,43.68759155]
[1741615524930,43.68759155,123.73,123.61,104.38932738]
[1741615525225,43.68759155,123.7,123.61,104.38932738]
[1741615525533,0.06037709,123.68,123.62,62.0]
[1741615526125,0.06037709,123.68,123.64,43.68759155]
[1741615526525,0.06037709,123.68,123.65,0.02018172]
[1741615526931,0.06037709,123.68,123.6,47.63739155]
[1741615526932,0.06037709,123.68,123.59,266.36]
[1741615527230,43.68759155,123.67,123.59,8.56748015]
[1741615527628,43.68759155,123.65,123.53,47.86549155]
[1741615527822,43.68759155,123.62,123.53,12.74538015]
[1741615528022,43.68759155,123.59,123.53,8.56748015]
[1741615528226,43.68759155,123.56,123.44,4.1779]
[1741615528530,43.68759155,123.56,123.44,12.74538015]
[1741615528728,0.05979141,123.51,123.44,4.1779]
[1741615529125,43.68759155,123.6,123.44,12.74538015]
[1741615529126,43.68759155,123.57,123.44,12.74538015]
[1741615529322,43.68759155,123.52,123.44,8.56748015]
[1741615529821,43.68759155,123.54,123.37,4.1498]
[1741615529822,43.68759155,123.47,123.37,4.1498]
[1741615530026,8.0997,123.46,123.37,12.71728015]
[1741615530231,43.68759155,123.47,123.37,4.1498]
[1741615530438,0.05237932,123.43,123.41,0.05979141]
[1741615530927,43.68759155,123.66,123.42,266.78]
[1741615531127,43.68759155,123.58,123.45,43.68759155]
[1741615531322,43.68759155,123.58,123.47,43.68759155]
[1741615531627,43.68759155,123.55,123.46,4.1922]
[1741615531819,43.68759155,123.55,123.44,43.68759155]
[1741615532018,43.68759155,123.55,123.44,52.2550717]
[1741615532224,43.68759155,123.51,123.44,8.56748015]
[1741615532418,43.68759155,123.54,123.44,8.56748015]
[1741615532623,43.68759155,123.49,123.41,0.05960777]
[1741615532825,43.68759155,123.49,123.41,8.56748015]
[1741615533025,0.05146761,123.46,123.44,0.05554172]
[1741615534231,43.73905916,123.46,123.36,497.2018]
[1741615534435,43.68759155,123.42,123.36,489.0]
[1741615534632,43.68759155,123.4,123.36,489.0]
[1741615534834,8.1055,123.37,123.36,401.28094373]
[1741615535034,51.79309155,123.37,123.36,4.44e-05]
[1741615535232,91.4351831,123.37,123.23,266.92]
[1741615535428,43.68759155,123.33,123.23,764.48748015]
[1741615535634,43.68759155,123.33,123.23,489.0]
[1741615535931,43.68759155,123.37,123.23,497.56748015]
[1741615535932,43.68759155,123.26,123.23,497.56748015]
[1741615536133,43.68759155,123.24,123.23,489.0]
[1741615536431,43.68759155,123.31,123.23,464.2124]
[1741615536734,43.68759155,123.24,123.23,414.63692867]
[1741615536926,354.5351831,123.24,123.23,231.0]
[1741615537121,47.74759155,123.24,123.23,2.912e-05]
[1741615537322,0.0550187,123.25,123.23,110.0]
[1741615537727,43.68759155,123.24,123.23,97.7293]
[1741615537930,43.68759155,123.24,123.1,43.68759155]
[1741615537931,354.5351831,123.24,123.1,43.68759155]
[1741615538127,43.68759155,123.21,123.12,8.11]
[1741615538442,43.73903341,123.18,123.1,26.0]
[1741615538636,43.68759155,123.15,123.1,26.0]
[1741615538834,43.68759155,123.12,123.1,26.0]
[1741615539133,43.68759155,123.13,123.1,26.0]
[1741615539351,43.68759155,123.12,122.96,1.41351368]
[1741615539528,43.68759155,123.02,122.89,43.68759155]
[1741615539925,43.68759155,123.1,123.01,8.11]
[1741615540128,43.68759155,123.13,123.07,8.11]
[1741615540340,43.68759155,123.18,123.1,8.11]
[1741615540543,43.68759155,123.15,123.08,8.11]
[1741615540729,0.05792991,123.15,123.12,8.11]
[1741615540938,0.05792991,123.15,123.14,48.68]
[1741615541134,43.68759155,123.15,123.07,8.1157]
[1741615541340,43.68759155,123.12,123.05,8.11]
[1741615541632,43.68759155,123.12,123.01,4.2336]
[1741615541633,43.68759155,123.12,123.07,8.11]
[1741615541833,0.05418763,123.1,123.08,8.11]
[1741615542038,0.05418763,123.1,123.07,8.11]
[1741615542238,0.05418763,123.1,122.97,4.1276]
[1741615542239,43.68759155,123.09,122.97,4.1276]
[1741615542535,43.68759155,123.06,123.03,8.11]
[1741615542730,8.1226,123.11,123.06,8.11]
[1741615542934,43.68759155,123.12,123.03,48.68]
[1741615543132,1.41431794,123.17,123.11,8.11]
[1741615543335,43.68759155,123.18,123.09,40.57]
[1741615543541,43.68759155,123.18,123.13,8.11]
[1741615543735,43.68759155,123.24,123.15,8.11]
[1741615543940,0.06062871,123.21,123.07,8.028]
[1741615544227,43.68759155,123.21,123.13,8.11]
[1741615544429,43.68759155,123.21,123.15,8.11]
[1741615544633,1.41311189,123.25,123.06,300.44214453]
[1741615544831,43.68759155,123.17,123.08,40.57]
[1741615545029,0.05948064,123.19,123.09,40.57]
[1741615545245,45.31044127,123.24,123.16,40.57]
[1741615545443,1.62284972,123.24,123.15,43.68759155]
[1741615545739,43.68759155,123.3,123.21,40.57]
[1741615545939,43.68759155,123.3,123.19,40.57]
[1741615546144,43.68759155,123.3,123.22,40.57]
[1741615546441,8.1127,123.26,123.21,40.57]
[1741615546641,43.68759155,123.31,123.19,43.68759155]
[1741615546858,0.06252689,123.27,123.25,0.06199946]
[1741615547140,0.06252689,123.27,123.25,28.84751685]
[1741615547348,43.68759155,123.36,123.23,267.74]
[1741615547537,43.68759155,123.36,123.26,28.84751685]
[1741615547743,45.09929899,123.38,123.28,28.84751685]
[1741615547941,43.68759155,123.34,123.25,28.84751685]
[1741615548141,43.68759155,123.31,123.18,43.68759155]
[1741615548446,0.05336418,123.34,123.2,43.68759155]
[1741615548648,43.68759155,123.36,123.28,28.84751685]
[1741615548845,267.74,123.39,123.27,43.68759155]
[1741615548846,43.68759155,123.38,123.27,43.68759155]
[1741615549035,43.68759155,123.38,123.25,43.68759155]
[1741615549036,1.41156428,123.4,123.31,43.68759155]
[1741615549237,43.68759155,123.44,123.32,28.84751685]
[1741615549446,267.72,123.47,123.36,28.84751685]
[1741615549743,0.06223684,123.39,123.38,28.84751685]
[1741615550048,43.68759155,123.54,123.38,28.84751685]
[1741615550049,43.68759155,123.52,123.38,28.84751685]
[1741615550342,43.68759155,123.52,123.41,43.68759155]
[1741615550649,43.68759155,123.42,123.32,8.3907]
[1741615550841,43.68759155,123.42,123.33,28.84751685]
[1741615551042,267.72,123.46,123.32,8.3907]
[1741615551043,43.68759155,123.4,123.32,8.3907]
[1741615551247,8.1055,123.37,123.36,5.761e-05]
[1741615551749,8.1081,123.33,123.27,43.68759155]
[1741615552041,43.68759155,123.36,123.27,53.654997]
[1741615552248,43.68759155,123.38,123.26,3.9387]
[1741615552541,0.05289007,123.33,123.28,28.84751685]
[1741615552745,43.68759155,123.32,123.24,4.0812]
[1741615552947,0.05289007,123.33,123.08,298.13581166]
[1741615552948,43.68759155,123.3,123.21,4.1035]
[1741615553142,43.68759155,123.33,123.26,28.84751685]
[1741615553340,8.1115,123.28,123.25,28.84751685]
[1741615553542,43.68759155,123.27,123.08,106.13581166]
[1741615553740,43.74340416,123.29,123.15,43.68759155]
[1741615554052,267.6,123.3,123.23,28.84751685]
[1741615554253,311.28759155,123.37,123.24,43.68759155]
[1741615554436,43.68759155,123.39,123.26,43.68759155]
[1741615554642,43.68759155,123.37,123.29,28.84751685]
[1741615554946,43.68759155,123.4,123.28,43.68759155]
[1741615555244,43.68759155,123.4,123.27,43.68759155]
[1741615555448,8.1077,123.34,123.26,8.1125]
[1741615555748,0.06084099,123.35,123.32,0.05591725]
[1741615555952,8.1095,123.31,123.28,62.0]
[1741615556153,0.05510685,123.35,123.32,0.05844662]
[1741615556545,43.68759155,123.34,123.25,4.1035]
[1741615556746,43.68759155,123.3,123.25,4.1035]
[1741615557143,43.68759155,123.28,123.2,4.0484]
[1741615557338,43.68759155,123.25,123.18,24.80748015]
[1741615557547,43.68759155,123.21,123.15,4.0484]
[1741615557748,43.74494735,123.23,123.15,4.0484]
[1741615558046,43.68759155,123.23,123.15,28.85588015]
[1741615558248,0.05712595,123.2,123.13,8.3294]
[1741615558450,43.68759155,123.18,123.07,3.9735]
[1741615558652,0.05712595,123.2,123.1,43.68759155]
[1741615558851,200.0285,123.29,123.12,43.68759155]
[1741615558852,43.68759155,123.25,123.12,43.68759155]
[1741615559055,8.1172,123.2,123.14,43.68759155]
[1741615559256,43.68759155,123.27,123.15,3.9735]
[1741615559552,43.68759155,123.28,123.16,105.68759155]
[1741615559851,43.68759155,123.28,123.16,109.61159155]
[1741615560151,0.05386775,123.23,123.21,0.05525793]
[1741615560547,43.68759155,123.29,123.17,4.1552]
[1741615560747,43.68759155,123.29,123.21,0.05525793]
[1741615560952,43.68759155,123.25,123.21,5.793e-05]
[1741615561156,43.68759155,123.29,123.17,47.84279155]
[1741615561349,43.68759155,123.29,123.17,28.96268015]
[1741615561553,1.41236632,123.33,123.22,43.68759155]
[1741615561757,54.76512719,123.36,123.24,51.80109155]
[1741615561948,43.68759155,123.34,123.25,4.0846]
[1741615562151,0.05581787,123.31,123.29,0.05709255]
[1741615562353,11.07753564,123.36,123.29,0.05709255]
[1741615562562,11.07753564,123.36,123.3,43.68759155]
[1741615563058,11.07753564,123.36,123.3,24.80748015]
[1741615563258,43.68759155,123.35,123.27,62.0]
[1741615563560,11.07753564,123.36,123.29,43.68759155]
[1741615563855,132.93042778,123.39,123.35,43.68759155]
[1741615564158,126.97375402,123.39,123.35,267.68]
[1741615564362,135.07855402,123.39,123.35,267.68]
[1741615564556,126.97375402,123.39,123.35,267.68]
[1741615564855,19.02927473,123.46,123.39,8.1042]
[1741615565061,10.92957473,123.46,123.4,43.68759155]
[1741615565360,0.05152196,123.44,123.38,43.68759155]
[1741615565558,43.68759155,123.42,123.27,192.0]
[1741615565763,43.68759155,123.36,123.23,43.68759155]
[1741615565954,43.68759155,123.34,123.23,43.68759155]
[1741615566456,43.68759155,123.4,123.26,43.68759155]
[1741615566762,43.68759155,123.37,123.27,62.0]
[1741615566950,4.1385,123.41,123.2,267.68]
[1741615566951,43.68759155,123.33,123.32,2.147e-05]
[1741615567153,0.05880688,123.34,123.32,2.147e-05]
[1741615567354,4.06,123.34,123.23,43.68759155]
[1741615567658,43.68759155,123.35,123.2,267.68]
[1741615567659,43.68759155,123.36,123.22,43.68759155]
[1741615567854,267.58,123.39,123.24,43.68759155]
[1741615568052,43.68759155,123.39,123.27,43.68759155]
[1741615568255,268.99076315,123.45,123.33,43.68759155]
[1741615568256,43.68759155,123.45,123.33,43.68759155]
[1741615568449,3.9636,123.43,123.33,43.68759155]
[1741615568660,43.68759155,123.45,123.3,43.68759155]
[1741615568661,43.68759155,123.47,123.3,43.68759155]
[1741615568862,0.06224919,123.39,123.37,0.05797626]
[1741615569265,43.68759155,123.47,123.36,43.68759155]
[1741615569462,0.05656205,123.39,123.37,0.05609891]
[1741615569667,0.05656205,123.39,123.3,267.58]
[1741615569871,43.68759155,123.47,123.31,105.68759155]
[1741615570064,43.68759155,123.45,123.33,43.68759155]
[1741615570270,43.68759155,123.48,123.33,43.68759155]
[1741615570570,4.0325,123.49,123.39,43.68759155]
[1741615570765,8.0989,123.48,123.41,43.68759155]
[1741615570971,0.05963613,123.45,123.39,311.22759155]
[1741615571171,0.05963613,123.45,123.42,43.68759155]
[1741615571371,0.00351447,123.45,123.38,43.68759155]
[1741615571567,0.00351447,123.45,123.39,43.68759155]
[1741615571776,8.0971,123.5,123.43,8.1014]
[1741615572069,8.0971,123.5,123.42,43.68759155]
[1741615572070,4.0527,123.53,123.42,43.68759155]
[1741615572270,4.0527,123.53,123.37,271.4677]
[1741615572271,4.2549,123.54,123.46,8.0991]
[1741615572466,43.68759155,123.61,123.49,43.68759155]
[1741615572862,0.05528896,123.5,123.47,43.68759155]
[1741615573177,43.68759155,123.58,123.49,0.05840025]
[1741615573478,4.0141,123.63,123.51,43.68759155]
[1741615573773,8.0942,123.55,123.5,62.0]
[1741615573977,43.68759155,123.6,123.5,62.0]
[1741615574169,43.68759155,123.62,123.5,105.68759155]
[1741615574374,0.06216941,123.54,123.53,8.0947]
[1741615574684,43.68759155,123.62,123.48,43.68759155]
[1741615574974,0.05541242,123.55,123.52,0.05967581]
[1741615575276,0.05541242,123.55,123.52,8.15517581]
[1741615575475,8.1984,123.65,123.52,8.15517581]
[1741615575476,1.40827971,123.69,123.53,43.68759155]
[1741615575672,0.05897784,123.55,123.52,0.05994157]
[1741615575878,0.05897784,123.55,123.47,43.68759155]
[1741615576071,43.68759155,123.58,123.47,43.68759155]
[1741615576278,43.68759155,123.58,123.46,267.46]
[1741615576279,0.06218448,123.55,123.52,43.74349376]
[1741615576480,0.06218448,123.55,123.52,0.05590221]
[1741615576776,43.68759155,123.59,123.46,267.46]
[1741615576988,0.0597688,123.55,123.52,0.05946962]
[1741615577485,4.0556,123.65,123.54,43.68759155]
[1741615577682,0.06002634,123.55,123.54,43.68759155]
[1741615577882,0.06002634,123.55,123.54,311.02759155]
[1741615578083,4.1859,123.7,123.54,91.4151831]
[1741615578381,4.1859,123.7,123.6,43.68759155]
[1741615578595,43.68759155,123.74,123.62,43.68759155]
[1741615579295,8.3587,123.75,123.61,43.68759155]
[1741615579490,0.05914763,123.67,123.64,0.05932632]
[1741615580193,0.05914763,123.67,123.57,43.68759155]
[1741615580686,43.68759155,123.71,123.58,8.0915]
[1741615580897,43.68759155,123.73,123.6,43.68759155]
[1741615581395,4.149,123.77,123.63,43.68759155]
[1741615581691,4.149,123.77,123.61,62.0]
[1741615581692,43.68759155,123.72,123.6,43.68759155]
[1741615581889,43.68759155,123.7,123.59,267.24]
[1741615582090,0.06155401,123.71,123.69,0.05942356]
[1741615582287,0.06155401,123.71,123.6,43.68759155]
[1741615582288,43.68759155,123.7,123.59,267.24]
[1741615582592,43.68759155,123.64,123.54,4.0224]
[1741615582792,43.68759155,123.62,123.45,402.15124931]
[1741615582993,43.68759155,123.59,123.47,310.82759155]
[1741615583199,43.68759155,123.66,123.56,43.68759155]
[1741615583495,43.68759155,123.66,123.55,267.14]
[1741615583691,0.06098641,123.62,123.57,43.68759155]
[1741615583890,0.06098641,123.62,123.55,271.1512]
[1741615584092,0.00163653,123.62,123.59,43.73328159]
[1741615584390,0.00163653,123.62,123.59,0.04569004]
[1741615584795,0.00163653,123.62,123.6,43.68759155]
[1741615585191,0.00163653,123.62,123.59,0.04569004]
[1741615586899,0.00163653,123.62,123.61,8.0897]
[1741615587104,0.00163653,123.62,123.59,0.04569004]
[1741615587692,0.00163653,123.62,123.48,45.30728704]
[1741615587693,43.68759155,123.6,123.49,270.991]
[1741615588593,4.1091,123.61,123.51,43.68759155]
[1741615588798,43.68759155,123.63,123.49,270.991]
[1741615589095,0.00858103,123.57,123.56,8.093]
[1741615589300,4.0549,123.71,123.56,267.04]
[1741615589501,4.0549,123.71,123.6,43.68759155]
[1741615589995,4.2976,123.7,123.59,43.68759155]
[1741615590496,0.06115136,123.66,123.57,23.74582078]
[1741615590694,0.06115136,123.66,123.58,62.0]
[1741615590889,4.2976,123.7,123.6,43.68759155]
[1741615591100,4.2976,123.7,123.63,43.68759155]
[1741615591306,4.0549,123.71,123.63,43.68759155]
[1741615591703,4.0549,123.71,123.65,8.0869]
[1741615591891,0.05519274,123.68,123.66,0.05539172]
[1741615592296,47.98519155,123.76,123.66,0.05539172]
[1741615592493,4.2976,123.76,123.67,43.68759155]
[1741615592695,4.2976,123.76,123.65,43.68759155]
[1741615592897,47.98519155,123.76,123.65,43.68759155]
[1741615593098,43.68759155,123.72,123.64,267.0]
[1741615593394,43.68759155,123.72,123.64,275.0877]
[1741615593591,4.2976,123.76,123.64,275.0877]
[1741615593592,0.05466864,123.69,123.67,0.05637232]
[1741615593793,43.68759155,123.68,123.57,267.0]
[1741615593995,43.68759155,123.65,123.52,43.68759155]
[1741615594207,43.68759155,123.65,123.54,8.0942]
[1741615594509,43.68759155,123.65,123.53,62.0]
[1741615595110,0.05489542,123.6,123.58,43.74047139]
[1741615595298,0.05489542,123.6,123.58,0.05287984]
[1741615595495,310.60759155,123.71,123.59,43.68759155]
[1741615595700,43.68759155,123.71,123.59,43.68759155]
[1741615596000,43.68759155,123.72,123.61,43.68759155]
[1741615596402,43.68759155,123.72,123.63,8.0881]
[1741615596594,43.68759155,123.72,123.61,43.68759155]
[1741615596804,0.05565551,123.69,123.66,0.05416037]
[1741615597001,43.68759155,123.68,123.58,266.92]
[1741615597309,43.68759155,123.72,123.61,43.68759155]
[1741615597801,43.68759155,123.66,123.58,266.92]
[1741615598005,43.68759155,123.66,123.53,43.68759155]
[1741615598408,0.0564212,123.63,123.61,0.05494719]
[1741615598608,0.0564212,123.63,123.62,62.0]
[1741615598807,43.68759155,123.72,123.62,62.0]
[1741615599309,0.05952177,123.68,123.62,62.0]
[1741615599607,8.0858,123.67,123.66,0.05494719]
[1741615599805,43.74711332,123.68,123.62,62.0]
[1741615600114,8.0883,123.64,123.6,266.92]
[1741615600312,43.68759155,123.66,123.55,43.68759155]
[1741615600611,43.68759155,123.66,123.55,51.78089155]
[1741615600809,43.68759155,123.66,123.55,43.68759155]
[1741615601005,0.06164233,123.62,123.57,43.68759155]
[1741615601512,0.00669514,123.62,123.6,43.68759155]
[1741615601711,0.00669514,123.62,123.58,51.77929155]
[1741615602008,0.00669514,123.62,123.58,43.74253874]
[1741615602208,0.00669514,123.62,123.59,8.0907]
[1741615602410,0.00669514,123.62,123.59,43.68759155]
[1741615602610,0.00669514,123.62,123.58,0.05494719]
[1741615603212,0.00669514,123.62,123.59,105.68759155]
[1741615603511,0.00669514,123.62,123.61,43.68759155]
[1741615603903,0.00669514,123.62,123.61,47.72759155]
[1741615604106,0.00669514,123.62,123.61,43.68759155]
[1741615604306,8.2549,123.75,123.61,47.72759155]
[1741615604512,2.02163625,123.74,123.64,43.68759155]
[1741615605013,6.00743366,123.73,123.67,43.68759155]
[1741615605215,6.00743366,123.73,123.69,43.68759155]
[1741615605505,8.14441627,123.71,123.69,0.05750576]
[1741615605699,0.06101627,123.71,123.69,0.05750576]
[1741615606707,8.0839,123.7,123.69,62.05750576]
[1741615607512,0.06101627,123.71,123.69,62.05750576]
[1741615608200,8.0839,123.7,123.69,62.05750576]
[1741615608606,0.06101627,123.71,123.69,62.05750576]
[1741615610602,0.06101627,123.71,123.69,0.05750576]
[1741615611412,8.14481627,123.71,123.69,0.05750576]
[1741615611609,0.06101627,123.71,123.69,0.05750576]
[1741615612010,0.06101627,123.71,123.62,266.9]
[1741615612206,51.73136545,123.7,123.59,126.09074959]
[1741615612415,43.68759155,123.67,123.59,126.09074959]
[1741615612617,2.02234991,123.66,123.59,126.09074959]
[1741615613011,8.0876,123.65,123.6,8.0901]
[1741615613213,0.05139374,123.64,123.59,126.09074959]
[1741615613718,0.05139374,123.64,123.61,62.0]
[1741615614109,0.05139374,123.64,123.63,8.0884]
[1741615614516,6.05903553,123.67,123.61,62.0]
[1741615614517,8.0843,123.7,123.62,43.68759155]
[1741615614723,4.0447,123.72,123.64,43.68759155]
[1741615615017,8.09557152,123.71,123.64,43.68759155]
[1741615615216,2.0213064,123.7,123.64,310.54759155]
[1741615615416,6.07411188,123.7,123.64,310.54759155]
[1741615615620,2.0214041,123.69,123.64,266.86]
[1741615615815,2.07488256,123.68,123.66,0.05297953]
[1741615616011,8.13917846,123.68,123.66,0.05297953]
[1741615616218,8.09569799,123.67,123.66,0.05297953]
[1741615616514,6.07411188,123.67,123.66,0.05297953]
[1741615616720,6.07411188,123.67,123.66,8.13947953]
[1741615617014,0.05347846,123.68,123.66,0.05297953]
[1741615617218,43.68759155,123.78,123.67,43.68759155]
[1741615617421,2.02118714,123.77,123.67,43.68759155]
[1741615617618,2.02118714,123.76,123.69,43.68759155]
[1741615617811,2.02118714,123.75,123.69,43.68759155]
[1741615618126,8.13806502,123.74,123.67,43.68759155]
[1741615618426,8.19626345,123.73,123.71,0.05212301]
[1741615618620,2.02118714,123.72,123.71,0.05212301]
[1741615618822,2.02118714,123.72,123.68,62.0]
[1741615619021,2.02118714,123.71,123.7,0.05368921]
[1741615619220,8.13798923,123.71,123.7,0.05368921]
[1741615619816,8.13798923,123.71,123.65,43.68759155]
[1741615619817,16.22145981,123.71,123.65,43.68759155]
[1741615620017,16.22145981,123.71,123.64,274.9473]
[1741615620018,2.02144032,123.7,123.64,266.86]
[1741615620218,2.02144032,123.69,123.64,266.86]
[1741615620419,2.02144032,123.68,123.61,126.09074959]
[1741615620619,2.02144032,123.67,123.61,126.09074959]
[1741615620825,6.11687788,123.68,123.62,43.68759155]
[1741615621024,4.2751,123.76,123.65,43.68759155]
[1741615621322,0.06161014,123.66,123.6,43.68759155]
[1741615621726,3.9554,123.71,123.6,43.68759155]
[1741615621927,4.2751,123.76,123.6,43.68759155]
[1741615621928,2.02179236,123.7,123.66,43.68759155]
[1741615622122,4.2751,123.76,123.64,43.68759155]
[1741615622318,2.02124814,123.75,123.67,43.68759155]
[1741615622527,2.02124814,123.74,123.7,43.68759155]
[1741615622718,6.11849067,123.74,123.71,266.8]
[1741615623226,6.06393815,123.74,123.71,266.85252997]
[1741615623626,0.05438799,123.74,123.73,8.0819]
[1741615623926,0.05438799,123.74,123.71,266.85252997]
[1741615624316,2.02064203,123.73,123.71,0.05252997]
[1741615624628,0.05438799,123.74,123.71,0.05252997]
[1741615625632,8.0826,123.72,123.71,0.05252997]
[1741615625931,2.02086696,123.72,123.67,43.68759155]
[1741615626229,43.68759155,123.79,123.67,43.68759155]
[1741615626415,43.68759155,123.75,123.65,266.8]
[1741615626621,10.10229336,123.74,123.66,8.086]
[1741615626826,2.02079336,123.73,123.67,43.68759155]
[1741615627127,8.0843,123.7,123.65,310.48759155]
[1741615627330,2.02177199,123.69,123.62,126.09074959]
[1741615627525,43.68759155,123.77,123.62,126.09074959]
[1741615627830,43.68759155,123.72,123.62,126.09074959]
[1741615628029,2.0218759,123.71,123.62,126.09074959]
[1741615628221,2.0218759,123.7,123.64,43.68759155]
[1741615628531,0.06051438,123.68,123.62,169.77834114]
[1741615628719,0.06051438,123.68,123.62,126.09074959]
[1741615628919,2.02222597,123.67,123.62,126.09074959]
[1741615629115,43.68759155,123.65,123.62,107.31984959]
[1741615629329,8.0884,123.63,123.62,22.55167957]
[1741615629621,8.0884,123.63,123.61,210.15124931]
[1741615629622,2.02288041,123.63,123.61,193.50524931]
[1741615629836,53.79957196,123.62,123.61,124.24654931]
[1741615630017,53.79957196,123.62,123.51,8.0961]
[1741615630018,2.02379432,123.62,123.56,28.94062763]
[1741615630220,2.02379432,123.61,123.56,28.94062763]
[1741615630521,43.68759155,123.58,123.56,28.94062763]
[1741615630826,43.68759155,123.58,123.55,109.13564931]
[1741615630827,2.02405743,123.57,123.55,109.13564931]
[1741615631027,43.74238954,123.6,123.55,109.13564931]
[1741615631218,2.024022,123.59,123.55,109.13564931]
[1741615631524,0.05511174,123.59,123.55,109.13564931]
[1741615631725,0.05511174,123.59,123.56,43.68759155]
[1741615632023,4.3091,123.71,123.58,43.68759155]
[1741615632220,2.02239469,123.7,123.58,43.68759155]
[1741615632420,2.02239469,123.7,123.6,8.0903]
[1741615632615,2.02239469,123.7,123.6,43.68759155]
[1741615632821,31.5379991,123.63,123.62,43.68759155]
[1741615633023,214.53665161,123.65,123.64,0.05885003]
[1741615633218,276.99266343,123.66,123.64,43.74644158]
[1741615633420,8.0871,123.65,123.59,43.68759155]
[1741615633625,8.0871,123.65,123.56,4.1463]
[1741615633626,43.68759155,123.64,123.56,62.0]
[1741615633825,276.99266343,123.66,123.57,1.4620083]
[1741615633826,4.1527,123.65,123.57,1.4620083]
[1741615634026,4.1527,123.65,123.55,266.84]
[1741615634323,4.1527,123.65,123.54,43.68759155]
[1741615634535,43.68759155,123.6,123.48,235.68759155]
[1741615634824,0.05282347,123.55,123.44,43.68759155]
[1741615635025,7.96982347,123.55,123.44,43.68759155]
[1741615635225,43.68759155,123.53,123.41,45.09632733]
[1741615635417,51.60459155,123.55,123.41,45.09632733]
[1741615635621,0.05154864,123.51,123.41,45.09632733]
[1741615635820,43.73914019,123.51,123.4,276.93423301]
[1741615636017,43.68759155,123.51,123.41,43.68759155]
[1741615636225,0.05321731,123.47,123.41,43.68759155]
[1741615636822,0.05321731,123.47,123.42,62.0]
[1741615637025,0.05321731,123.47,123.42,105.68759155]
[1741615637225,51.60459155,123.55,123.44,43.68759155]
[1741615637422,0.06131073,123.46,123.44,43.68759155]
[1741615637620,0.06131073,123.46,123.42,105.68759155]
[1741615637825,43.68759155,123.53,123.42,105.68759155]
[1741615638025,0.055805,123.45,123.42,105.68759155]
[1741615638241,43.68759155,123.53,123.42,62.0]
[1741615638431,0.06075475,123.45,123.42,62.0]
[1741615638639,7.917,123.55,123.44,43.68759155]
[1741615639035,43.68759155,123.54,123.42,105.68759155]
[1741615639235,7.917,123.55,123.44,43.68759155]
[1741615639442,7.917,123.55,123.46,43.68759155]
[1741615639641,7.917,123.55,123.46,310.66759155]
[1741615639837,0.05420136,123.52,123.49,0.05303199]
[1741615642244,1.36e-06,123.52,123.51,8.0963]
[1741615642546,1.36e-06,123.52,123.49,0.05303199]
[1741615643940,1.36e-06,123.52,123.44,62.0]
[1741615644247,43.68759155,123.53,123.44,62.0]
[1741615644647,43.68759155,123.49,123.37,47.75069155]
[1741615644952,8.4576,123.48,123.44,8.1008]
[1741615645155,0.05761483,123.44,123.42,0.05532743]
[1741615646645,0.00453281,123.44,123.42,0.05532743]
[1741615646852,0.00453281,123.44,123.42,8.15752743]
[1741615647057,0.00453281,123.44,123.42,0.05532743]
[1741615647449,0.00453281,123.44,123.36,267.1]
[1741615647652,43.68759155,123.49,123.38,43.68759155]
[1741615647849,4.1527,123.52,123.41,43.68759155]
[1741615648053,4.1527,123.52,123.43,43.68759155]
[1741615648549,0.0522146,123.49,123.46,0.05480667]
[1741615648753,43.68759155,123.49,123.39,43.68759155]
[1741615648960,43.74718319,123.49,123.46,0.05333428]
[1741615649353,43.74718319,123.49,123.37,43.68759155]
[1741615649354,43.68759155,123.47,123.36,267.1]
[1741615649555,0.05689968,123.49,123.46,0.05569604]
[1741615649853,0.05237148,123.49,123.46,0.05864243]
[1741615650553,8.092,123.58,123.52,8.0953]
[1741615650751,43.68759155,123.58,123.46,43.74623398]
[1741615650959,43.68759155,123.58,123.46,43.68759155]
[1741615650960,3.9249,123.57,123.46,43.68759155]
[1741615651263,43.68759155,123.56,123.47,62.0]
[1741615651554,43.68759155,123.54,123.44,8.1007]
[1741615651754,43.68759155,123.52,123.5,0.05098315]
[1741615651961,4.3064,123.51,123.4,43.68759155]
[1741615652352,3.9249,123.5,123.39,43.68759155]
[1741615652551,4.3064,123.51,123.42,43.68759155]